bitfinex/quotes_BTCUSD_20241101
["timestamp","ask_amount","ask_price","bid_price","bid_amount"]
[1730421655795,0.00040729,70192.0,70191.0,0.14313469]
[1730421656019,0.00040729,70192.0,70191.0,0.15202356]
[1730421656240,0.01757391,70192.0,70191.0,0.15202356]
[1730421656461,0.001646,70195.0,70191.0,0.15202356]
[1730421656462,0.00040729,70194.0,70191.0,0.15202356]
[1730421656678,0.01757391,70192.0,70191.0,0.14313469]
[1730421656902,0.001646,70195.0,70191.0,0.15203077]
[1730421657108,0.01716662,70192.0,70191.0,0.14313469]
[1730421657319,0.001646,70195.0,70193.0,0.00467944]
[1730421657546,0.001646,70195.0,70194.0,0.00889603]
[1730421658237,0.001646,70195.0,70193.0,0.00467944]
[1730421658458,0.001646,70195.0,70194.0,0.00889982]
[1730421658695,0.001646,70195.0,70193.0,0.00467944]
[1730421659127,0.001646,70195.0,70191.0,0.14313469]
[1730421659339,0.001646,70195.0,70193.0,0.00467944]
[1730421661331,0.001646,70195.0,70179.0,0.284984]
[1730421661332,0.005,70190.0,70183.0,0.00467944]
[1730421661578,0.005,70190.0,70189.0,0.21255491]
[1730421661800,0.005,70190.0,70184.0,0.14313469]
[1730421661801,0.14747,70190.0,70184.0,0.14313469]
[1730421662029,0.005,70190.0,70185.0,0.00890292]
[1730421662248,0.005,70190.0,70186.0,0.00890292]
[1730421662461,0.005,70190.0,70187.0,0.00890292]
[1730421662648,0.005,70190.0,70185.0,0.13845525]
[1730421662903,0.005,70190.0,70186.0,0.00890307]
[1730421663117,0.005,70190.0,70187.0,0.00890307]
[1730421663552,0.005,70190.0,70185.0,0.14313469]
[1730421663762,0.005,70190.0,70186.0,0.00890301]
[1730421663974,0.005,70190.0,70187.0,0.00890301]
[1730421664187,0.005,70190.0,70185.0,0.14313469]
[1730421664397,0.005,70190.0,70186.0,0.0089031]
[1730421664605,0.005,70190.0,70185.0,0.14313469]
[1730421664812,0.005,70190.0,70186.0,0.00890307]
[1730421665024,0.005,70190.0,70185.0,0.14313469]
[1730421665237,0.005,70190.0,70186.0,0.00890307]
[1730421665455,0.005,70190.0,70185.0,0.14313469]
[1730421666091,0.00540729,70190.0,70185.0,0.14313469]
[1730421666308,0.00540729,70190.0,70185.0,0.13845525]
[1730421667187,0.00040729,70186.0,70185.0,0.13845525]
[1730421667398,0.00040729,70186.0,70185.0,0.14735919]
[1730421668475,0.01757058,70186.0,70185.0,0.14735919]
[1730421668694,0.005,70190.0,70185.0,0.14736035]
[1730421668934,0.01716329,70186.0,70185.0,0.14736035]
[1730421669168,0.005,70190.0,70185.0,0.13845525]
[1730421669592,0.005,70190.0,70186.0,0.0089065]
[1730421669593,0.01716329,70189.0,70186.0,0.0089065]
[1730421669796,0.01716329,70189.0,70185.0,0.13845525]
[1730421670012,0.01716329,70189.0,70186.0,0.0089065]
[1730421670291,0.01716329,70189.0,70185.0,0.13845525]
[1730421670515,0.00040729,70187.0,70186.0,0.00890859]
[1730421671379,0.01716329,70187.0,70186.0,0.00890859]
[1730421671598,0.147471,70190.0,70186.0,0.00890859]
[1730421671817,0.147471,70190.0,70185.0,0.13845525]
[1730421671818,0.005,70190.0,70187.0,0.00890859]
[1730421672024,0.005,70190.0,70185.0,0.13845525]
[1730421672233,0.01716329,70189.0,70186.0,0.0089113]
[1730421672446,0.00040729,70188.0,70187.0,0.0089113]
[1730421673078,0.01757058,70188.0,70187.0,0.0089113]
[1730421673283,0.00040729,70188.0,70187.0,0.0089113]
[1730421673493,0.01757058,70188.0,70187.0,0.0089113]
[1730421673708,0.00040729,70188.0,70187.0,0.0089113]
[1730421673938,0.01757058,70188.0,70187.0,0.0089113]
[1730421674168,0.00040729,70188.0,70187.0,0.0089113]
[1730421674387,0.01716329,70188.0,70187.0,0.0089113]
[1730421674593,0.005,70190.0,70187.0,0.0089113]
[1730421674809,0.005,70190.0,70185.0,0.13845525]
[1730421674810,0.00040729,70187.0,70185.0,0.13845525]
[1730421675026,0.00040729,70187.0,70186.0,0.00891147]
[1730421675241,0.00540729,70190.0,70186.0,0.00891147]
[1730421675480,0.00540729,70190.0,70185.0,0.13845525]
[1730421675481,0.00040729,70188.0,70187.0,0.00891147]
[1730421679283,0.005,70190.0,70187.0,0.00891147]
[1730421679489,0.005,70190.0,70188.0,0.00891147]
[1730421679749,0.005,70190.0,70185.0,0.13845525]
[1730421679750,0.001646,70195.0,70189.0,0.35992163]
[1730421679957,0.001646,70195.0,70194.0,0.142462]
[1730421680200,0.001646,70195.0,70194.0,0.28982872]
[1730421680431,0.001646,70195.0,70194.0,0.14736672]
[1730421683727,0.001646,70195.0,70194.0,0.28982872]
[1730421685334,0.001646,70195.0,70194.0,0.64957934]
[1730421685574,0.001646,70195.0,70194.0,0.66666792]
[1730421685788,0.001646,70195.0,70194.0,0.79632973]
[1730421686003,0.001646,70195.0,70194.0,0.66826063]
[1730421686451,0.001646,70195.0,70194.0,0.79629115]
[1730421686663,0.001646,70195.0,70194.0,0.66826063]
[1730421687118,0.001646,70195.0,70194.0,0.51062343]
[1730421687325,0.001646,70195.0,70194.0,0.65108614]
[1730421687542,0.001646,70195.0,70194.0,0.77909315]
[1730421688382,0.001646,70195.0,70194.0,0.65108614]
[1730421689344,0.001646,70195.0,70194.0,0.77408614]
[1730421689557,0.001646,70195.0,70194.0,0.80260614]
[1730421690029,0.001646,70195.0,70194.0,0.81741927]
[1730421690481,0.001646,70195.0,70194.0,0.80260614]
[1730421691142,0.001646,70195.0,70194.0,0.80253946]
[1730421691354,0.001646,70195.0,70194.0,0.80250881]
[1730421691569,0.001646,70195.0,70194.0,0.93032996]
[1730421691778,0.001646,70195.0,70194.0,0.93009788]
[1730421692439,0.001646,70195.0,70194.0,0.80224043]
[1730421692886,0.001646,70195.0,70194.0,0.80223467]
[1730421700143,0.001646,70195.0,70194.0,0.80220772]
[1730421700565,0.001646,70195.0,70194.0,0.88922251]
[1730421701250,0.001646,70195.0,70194.0,0.88898738]
[1730421701459,0.001646,70195.0,70194.0,0.88898997]
[1730421701906,0.001646,70195.0,70194.0,0.878346]
[1730421702150,0.001646,70195.0,70194.0,0.88898445]
[1730421702584,0.001646,70202.0,70201.0,0.00627215]
[1730421702795,0.001646,70202.0,70201.0,0.38306461]
[1730421703005,0.01886485,70202.0,70201.0,0.38306461]
[1730421703262,0.001646,70202.0,70201.0,0.38306461]
[1730421704345,0.001646,70202.0,70201.0,0.39726422]
[1730421705497,0.001646,70202.0,70201.0,0.43820915]
[1730421706149,0.001646,70202.0,70201.0,0.39567151]
[1730421706362,0.001646,70202.0,70201.0,0.39726422]
[1730421706799,0.001646,70202.0,70201.0,0.46995026]
[1730421707446,0.001646,70202.0,70201.0,0.48058871]
[1730421707654,0.001646,70202.0,70201.0,0.65887987]
[1730421708526,0.001646,70202.0,70201.0,0.49476841]
[1730421708733,0.001646,70202.0,70201.0,0.65182495]
[1730421709385,0.001646,70202.0,70201.0,0.49480466]
[1730421709833,0.001646,70202.0,70201.0,0.59480466]
[1730421712443,0.001646,70202.0,70201.0,0.61192342]
[1730421712656,0.001646,70202.0,70201.0,0.50919665]
[1730421712869,0.001646,70202.0,70201.0,0.53234924]
[1730421716128,0.001646,70202.0,70201.0,0.50464325]
[1730421716347,0.001646,70202.0,70201.0,0.53243185]
[1730421717020,0.001646,70202.0,70201.0,0.43243185]
[1730421719419,0.001646,70202.0,70201.0,0.40925182]
[1730421719641,0.001646,70202.0,70201.0,0.43244767]
[1730421720328,0.001646,70202.0,70201.0,0.67478964]
[1730421720548,0.001646,70202.0,70201.0,0.58962898]
[1730421721445,0.001646,70202.0,70201.0,0.43244767]
[1730421721660,0.001646,70202.0,70201.0,0.69618706]
[1730421722089,0.001646,70202.0,70201.0,0.63423012]
[1730421722304,0.001646,70202.0,70201.0,0.63582283]
[1730421722556,0.001646,70202.0,70201.0,0.63582727]
[1730421722796,0.001646,70202.0,70201.0,0.59128563]
[1730421723013,0.001648,70211.0,70205.0,0.00467944]
[1730421723232,0.001648,70211.0,70210.0,0.42456518]
[1730421723451,0.001648,70211.0,70210.0,0.66314353]
[1730421725718,0.001648,70211.0,70210.0,0.79105754]
[1730421725937,0.001648,70211.0,70210.0,0.66314353]
[1730421726161,0.001648,70211.0,70210.0,0.79105627]
[1730421726610,0.001648,70211.0,70210.0,0.66314353]
[1730421726846,0.001648,70211.0,70210.0,0.79107339]
[1730421727529,0.001648,70211.0,70210.0,0.66314353]
[1730421727751,0.001648,70211.0,70210.0,0.57612874]
[1730421728036,0.001648,70211.0,70210.0,0.66314353]
[1730421728478,0.001648,70211.0,70210.0,0.67205607]
[1730421729590,0.001648,70211.0,70210.0,0.6488691]
[1730421729799,0.001648,70211.0,70210.0,0.62107162]
[1730421730030,0.001648,70211.0,70210.0,0.67197944]
[1730421730243,0.001648,70211.0,70210.0,0.8921228]
[1730421730528,0.001648,70211.0,70210.0,1.08549655]
[1730421730743,0.001648,70211.0,70210.0,0.89680224]
[1730421730963,0.001648,70211.0,70210.0,0.88255421]
[1730421732039,0.001648,70211.0,70210.0,0.86547414]
[1730421732882,0.001648,70211.0,70210.0,0.8547991]
[1730421733099,0.001648,70211.0,70210.0,1.04382364]
[1730421733309,0.001648,70211.0,70210.0,1.04382376]
[1730421733529,0.001648,70211.0,70210.0,0.8547991]
[1730421733754,0.001648,70211.0,70210.0,1.04380837]
[1730421734619,0.001648,70211.0,70210.0,1.14439897]
[1730421734827,0.00040729,70239.0,70210.0,1.14439897]
[1730421734828,0.21255491,70224.0,70215.0,0.35123073]
[1730421735036,0.21255491,70224.0,70215.0,1.0566656]
[1730421735248,0.0979,70231.0,70215.0,1.0566656]
[1730421735249,0.0979,70231.0,70215.0,0.8676783]
[1730421735459,0.0979,70231.0,70215.0,1.01210923]
[1730421735696,0.0979,70231.0,70215.0,0.9676783]
[1730421735913,0.0979,70231.0,70215.0,1.01209296]
[1730421736120,0.0979,70231.0,70215.0,1.03984263]
[1730421736556,0.0979,70231.0,70215.0,0.99542797]
[1730421737207,0.0979,70231.0,70215.0,1.01855477]
[1730421738621,0.0979,70231.0,70230.0,0.22940379]
[1730421738847,0.172414,70238.0,70232.0,0.284769]
[1730421739062,0.172414,70238.0,70237.0,0.142375]
[1730421739277,0.172414,70238.0,70237.0,0.61943349]
[1730421739725,0.172414,70238.0,70237.0,0.59810785]
[1730421740163,0.172414,70238.0,70237.0,0.61943349]
[1730421740412,0.001614,70238.0,70237.0,0.61943349]
[1730421740670,0.001614,70238.0,70237.0,0.5342263]
[1730421741550,0.001614,70238.0,70237.0,0.61933479]
[1730421742634,0.001614,70238.0,70237.0,0.52534184]
[1730421742841,0.001614,70238.0,70237.0,0.53420727]
[1730421743336,0.001614,70238.0,70237.0,0.52534184]
[1730421743791,0.001614,70238.0,70237.0,0.5891375]
[1730421744235,0.001614,70238.0,70237.0,0.59808514]
[1730421744683,0.001614,70238.0,70237.0,0.44058834]
[1730421744919,0.001614,70238.0,70237.0,0.37679268]
[1730421745187,0.00032056,70248.0,70237.0,0.37679268]
[1730421745188,0.001614,70252.0,70251.0,0.142346]
[1730421745397,0.001614,70252.0,70251.0,0.40100548]
[1730421745620,0.0762,70260.0,70259.0,0.14233]
[1730421745881,0.0762,70260.0,70259.0,0.28078525]
[1730421746581,0.0762,70260.0,70259.0,0.41054993]
[1730421747289,0.0762,70260.0,70259.0,0.62310484]
[1730421747512,0.001614,70261.0,70260.0,0.142328]
[1730421747725,0.001614,70261.0,70260.0,0.28078325]
[1730421753295,0.001614,70261.0,70260.0,0.2896247]
[1730421754998,0.001614,70261.0,70260.0,0.33213479]
[1730421755246,0.001614,70261.0,70260.0,0.37222039]
[1730421755473,0.0756,70271.0,70270.0,0.27207268]
[1730421755691,0.0756,70271.0,70270.0,0.41936938]
[1730421755919,0.09283996,70271.0,70270.0,0.41936938]
[1730421756145,0.0756,70271.0,70270.0,0.41936938]
[1730421756373,0.0756,70271.0,70270.0,0.43352049]
[1730421757501,0.1,70292.0,70270.0,0.57582749]
[1730421757502,0.0809,70276.0,70270.0,0.57582749]
[1730421757710,0.0809,70276.0,70272.0,0.142304]
[1730421757924,0.0809,70276.0,70272.0,0.30375181]
[1730421759945,0.0772,70281.0,70272.0,0.52098616]
[1730421760159,0.0772,70281.0,70272.0,0.53866848]
[1730421760403,0.0772,70281.0,70272.0,0.45222025]
[1730421760636,0.001612,70282.0,70272.0,0.45222025]
[1730421760637,0.001612,70282.0,70281.0,0.142285]
[1730421760876,0.001612,70282.0,70281.0,0.30378933]
[1730421761988,0.001612,70282.0,70281.0,0.3460816]
[1730421762442,0.001612,70282.0,70281.0,0.37190717]
[1730421762673,0.001612,70282.0,70281.0,0.56135478]
[1730421762900,0.001612,70282.0,70281.0,0.48391036]
[1730421763125,0.001612,70282.0,70281.0,0.58966981]
[1730421763348,0.07560966,70283.0,70282.0,0.00467944]
[1730421763578,0.07560966,70283.0,70282.0,0.37187811]
[1730421763825,0.07560966,70283.0,70282.0,0.30846677]
[1730421764741,0.07560966,70283.0,70282.0,0.37187811]
[1730421765393,0.142256,70296.0,70286.0,0.00467944]
[1730421765610,0.284508,70297.0,70287.0,0.16150433]
[1730421765834,0.01730302,70295.0,70288.0,0.02304908]
[1730421766056,0.284468,70307.0,70289.0,0.16150433]
[1730421766329,0.01730302,70294.0,70290.0,0.02304908]
[1730421766546,0.01730302,70297.0,70291.0,0.00886483]
[1730421766766,0.14257356,70298.0,70291.0,0.00886483]
[1730421766998,0.01730302,70296.0,70292.0,0.00886483]
[1730421767245,0.14257956,70294.0,70293.0,0.00886483]
[1730421767697,0.41427568,70296.0,70286.0,0.014167]
[1730421767698,0.142273,70287.0,70286.0,0.014167]
[1730421767920,0.284544,70288.0,70286.0,0.014167]
[1730421767921,0.142272,70288.0,70286.0,0.22140971]
[1730421768169,0.142272,70288.0,70287.0,0.0088548]
[1730421768384,0.1782,70288.0,70287.0,0.0088548]
[1730421768898,0.320471,70288.0,70287.0,0.0088548]
[1730421771275,0.17852056,70288.0,70277.0,0.01060516]
[1730421771503,0.17852056,70288.0,70278.0,0.15282141]
[1730421771504,0.00032056,70284.0,70278.0,0.15282141]
[1730421771735,0.00032056,70284.0,70279.0,0.02305673]
[1730421771949,0.00032056,70284.0,70280.0,0.00886777]
[1730421772175,0.00032056,70284.0,70281.0,0.00886777]
[1730421772393,0.00032056,70284.0,70282.0,0.02305766]
[1730421772642,0.00032056,70284.0,70283.0,0.00886777]
[1730421773079,0.00032056,70284.0,70283.0,0.15114877]
[1730421773286,0.00032056,70284.0,70283.0,0.16535019]
[1730421773685,0.00032056,70284.0,70283.0,0.29511487]
[1730421774170,0.00032056,70284.0,70283.0,0.02306919]
[1730421775474,0.1782,70288.0,70283.0,0.16535019]
[1730421775694,0.1782,70288.0,70284.0,0.02306919]
[1730421775880,0.1782,70288.0,70282.0,0.142283]
[1730421775881,0.1782,70288.0,70285.0,0.02306919]
[1730421776123,0.01730302,70287.0,70286.0,0.02306919]
[1730421778398,0.01730302,70287.0,70283.0,0.000823]
[1730421778612,0.01730302,70287.0,70284.0,0.02311136]
[1730421778835,0.01730302,70287.0,70285.0,0.02311136]
[1730421779037,0.01730302,70287.0,70286.0,0.02311136]
[1730421779299,0.01730302,70287.0,70286.0,0.00888878]
[1730421780911,0.01730302,70287.0,70286.0,0.02311505]
[1730421781378,0.01730302,70287.0,70286.0,0.1099492]
[1730421781602,0.01730302,70287.0,70286.0,0.09572293]
[1730421781845,0.284515,70295.0,70286.0,0.10995171]
[1730421781846,0.1754,70295.0,70286.0,0.10995171]
[1730421782084,0.01728249,70287.0,70286.0,0.08683415]
[1730421782306,0.0132994,70294.0,70286.0,0.37138515]
[1730421782307,0.01728249,70294.0,70286.0,0.37138515]
[1730421782542,0.1754,70295.0,70288.0,0.142271]
[1730421782759,0.1754,70295.0,70289.0,0.00889434]
[1730421782986,0.01728249,70294.0,70290.0,0.00889434]
[1730421783232,0.01728249,70294.0,70291.0,0.00889434]
[1730421783455,0.01728249,70294.0,70292.0,0.00889434]
[1730421783679,0.01728249,70294.0,70287.0,0.142273]
[1730421783896,0.01728249,70294.0,70288.0,0.00889581]
[1730421784187,0.01728249,70294.0,70289.0,0.10996393]
[1730421784381,0.01728249,70294.0,70290.0,0.02312978]
[1730421784608,0.01728249,70294.0,70290.0,0.06539778]
[1730421784832,0.01728249,70294.0,70291.0,0.02312978]
[1730421785065,0.01728249,70294.0,70292.0,0.00889581]
[1730421785284,0.01728249,70294.0,70293.0,0.00889581]
[1730421788490,0.15954149,70294.0,70293.0,0.00889581]
[1730421788703,0.142263,70292.0,70291.0,0.04251023]
[1730421788942,0.142263,70292.0,70291.0,0.05141164]
[1730421789157,0.142263,70292.0,70291.0,0.00890141]
[1730421789436,0.15954549,70292.0,70291.0,0.00890141]
[1730421789668,0.15954549,70292.0,70286.0,0.08502047]
[1730421789669,0.142271,70288.0,70287.0,0.04251023]
[1730421789888,0.142271,70288.0,70286.0,0.25506514]
[1730421789889,0.142273,70287.0,70286.0,0.25506514]
[1730421790120,0.15955549,70287.0,70286.0,0.26396802]
[1730421790341,0.15955549,70287.0,70286.0,0.05141311]
[1730421790563,0.15955549,70287.0,70286.0,0.00890288]
[1730421791975,0.15955549,70287.0,70286.0,0.0425949]
[1730421792178,0.15955549,70287.0,70286.0,0.05149737]
[1730421792630,0.15955549,70287.0,70286.0,0.00890247]
[1730421793507,0.15955549,70287.0,70286.0,0.00890432]
[1730421794159,0.15955549,70287.0,70286.0,0.00890431]
[1730421795995,0.15955549,70287.0,70284.0,0.001646]
[1730421795996,0.01728249,70287.0,70284.0,0.001646]
[1730421796224,0.142277,70285.0,70284.0,0.001646]
[1730421796451,0.322577,70285.0,70284.0,0.001646]
[1730421796705,0.33988245,70285.0,70284.0,0.001646]
[1730421801229,0.34070545,70285.0,70284.0,0.001646]
[1730421802326,0.44070545,70285.0,70284.0,0.001646]
[1730421802546,0.34070545,70285.0,70284.0,0.001646]
[1730421804992,0.16040545,70285.0,70284.0,0.001646]
[1730421822881,0.25280545,70285.0,70284.0,0.001646]
[1730421826264,0.79065821,70285.0,70284.0,0.001646]
[1730421832218,0.53481315,70284.0,70283.0,0.000823]
[1730421832428,1.36517349,70284.0,70283.0,0.000823]
[1730421832640,1.38241305,70284.0,70283.0,0.000823]
[1730421832848,1.52089035,70284.0,70283.0,0.000823]
[1730421843830,1.38241305,70284.0,70283.0,0.000823]
[1730421845636,1.38041305,70284.0,70283.0,0.000823]
[1730421847400,1.38241305,70284.0,70283.0,0.000823]
[1730421848750,1.38041305,70284.0,70283.0,0.000823]
[1730421848968,1.38241305,70284.0,70283.0,0.000823]
[1730421849658,1.38041305,70284.0,70283.0,0.000823]
[1730421849874,1.38241305,70284.0,70283.0,0.000823]
[1730421851401,1.52089035,70284.0,70283.0,0.000823]
[1730421851605,1.38241305,70284.0,70283.0,0.000823]
[1730421854433,1.38241305,70284.0,70283.0,1e-06]
[1730421854898,1.38241305,70284.0,70268.0,0.21255491]
[1730421854899,0.14731,70269.0,70268.0,0.21255491]
[1730421855113,0.5005994,70269.0,70268.0,0.21255491]
[1730421855324,0.51783115,70269.0,70268.0,0.21255491]
[1730421855541,0.142332,70258.0,70257.0,0.29495491]
[1730421855750,0.24639408,70258.0,70257.0,0.29495491]
[1730421856240,0.24639408,70258.0,70257.0,0.0824]
[1730421857805,0.142342,70253.0,70251.0,0.0754]
[1730421858043,0.25217615,70253.0,70251.0,0.0754]
[1730421858479,0.25217615,70253.0,70246.0,0.0754]
[1730421858990,0.27440408,70253.0,70246.0,0.0754]
[1730421859230,0.27440408,70253.0,70241.0,0.21255491]
[1730421859231,0.49224649,70253.0,70241.0,0.21255491]
[1730421859457,0.63070174,70253.0,70241.0,0.29575491]
[1730421861522,0.51785933,70253.0,70241.0,0.29575491]
[1730421869477,0.15956993,70253.0,70252.0,0.083122]
[1730421869699,0.01722793,70253.0,70252.0,0.083122]
[1730421870137,0.284663,70259.0,70252.0,0.083122]
[1730421870138,0.142336,70256.0,70252.0,0.083122]
[1730421870373,0.01718932,70253.0,70252.0,0.083122]
[1730421870595,0.142339,70255.0,70252.0,0.083122]
[1730421870806,0.15952832,70255.0,70252.0,0.083122]
[1730421871263,0.165341,70254.0,70252.0,0.083122]
[1730421871946,0.04018932,70253.0,70252.0,0.083122]
[1730421875623,0.023,70256.0,70252.0,0.083122]
[1730421875825,0.04020448,70253.0,70252.0,0.083122]
[1730421876079,0.023,70255.0,70252.0,0.083122]
[1730421876304,0.04020448,70253.0,70252.0,0.083122]
[1730421876533,0.023,70253.0,70252.0,0.083122]
[1730421876799,0.04020448,70253.0,70252.0,0.083122]
[1730421879435,0.01720448,70253.0,70252.0,0.43802091]
[1730421879693,0.023,70261.0,70254.0,0.142339]
[1730421879914,0.023,70261.0,70255.0,0.0756]
[1730421880148,0.023,70259.0,70255.0,0.0756]
[1730421880639,0.142324,70262.0,70255.0,0.0756]
[1730421880640,0.023,70263.0,70255.0,0.0756]
[1730421880861,0.01720448,70258.0,70255.0,0.0756]
[1730421881055,0.023,70261.0,70255.0,0.0756]
[1730421881327,0.01720448,70257.0,70255.0,0.0756]
[1730421881550,0.023,70261.0,70255.0,0.0756]
[1730421881781,0.01720448,70256.0,70255.0,0.0756]
[1730421882009,0.023,70260.0,70255.0,0.0756]
[1730421882227,0.04020448,70260.0,70255.0,0.0756]
[1730421882451,0.165328,70260.0,70255.0,0.0756]
[1730421882671,0.023,70258.0,70255.0,0.0756]
[1730421883095,0.023,70259.0,70255.0,0.0756]
[1730421883366,0.01720448,70257.0,70255.0,0.0756]
[1730421883606,0.023,70259.0,70255.0,0.0756]
[1730421883838,0.01720448,70256.0,70255.0,0.0756]
[1730421884259,0.023,70259.0,70255.0,0.0756]
[1730421884471,0.01720448,70256.0,70255.0,0.0756]
[1730421884683,0.165326,70261.0,70255.0,0.0756]
[1730421884892,0.01720448,70256.0,70255.0,0.0756]
[1730421885112,0.165326,70261.0,70255.0,0.0756]
[1730421885543,0.023,70259.0,70255.0,0.0756]
[1730421885985,0.023,70260.0,70255.0,0.0756]
[1730421886201,0.01720635,70258.0,70255.0,0.0756]
[1730421886411,0.023,70260.0,70255.0,0.0756]
[1730421886622,0.023,70258.0,70255.0,0.0756]
[1730421886832,0.023,70259.0,70255.0,0.0756]
[1730421887050,0.04020635,70259.0,70255.0,0.0756]
[1730421887259,0.023,70259.0,70255.0,0.0756]
[1730421887480,0.01720635,70258.0,70255.0,0.0756]
[1730421892489,0.01720635,70258.0,70255.0,0.077246]
[1730421893137,0.023,70260.0,70255.0,0.077246]
[1730421893373,0.01720635,70257.0,70255.0,0.077246]
[1730421893577,0.01720635,70256.0,70255.0,0.077246]
[1730421893780,0.142326,70261.0,70255.0,0.077246]
[1730421894039,0.04020635,70260.0,70255.0,0.077246]
[1730421894419,0.18253435,70260.0,70255.0,0.077246]
[1730421896894,0.023,70258.0,70255.0,0.077246]
[1730421897104,0.25217015,70256.0,70255.0,0.001646]
[1730421897569,0.26937489,70256.0,70255.0,0.001646]
[1730421901718,0.18254074,70256.0,70255.0,0.001646]
[1730421901927,0.04020474,70256.0,70255.0,0.179546]
[1730421902736,0.18254074,70256.0,70255.0,0.179546]
[1730421903158,0.18254074,70256.0,70255.0,0.001646]
[1730421903652,0.61393909,70256.0,70255.0,0.001646]
[1730421903864,0.96603909,70256.0,70255.0,0.001646]
[1730421905864,0.85569599,70256.0,70255.0,0.001646]
[1730421908067,0.85769599,70256.0,70255.0,0.001646]
[1730421908494,0.85569599,70256.0,70255.0,0.001646]
[1730421909352,0.85569599,70256.0,70255.0,0.072746]
[1730421909984,0.85769599,70256.0,70255.0,0.072746]
[1730421910630,0.99617329,70256.0,70255.0,0.072746]
[1730421911772,1.0600346,70256.0,70255.0,0.02918849]
[1730421912019,1.0600346,70256.0,70252.0,0.000822]
[1730421912020,0.455842,70253.0,70252.0,0.000822]
[1730421912242,0.83181937,70253.0,70252.0,0.000822]
[1730421912470,0.98746847,70253.0,70252.0,0.000822]
[1730421913349,0.98746847,70253.0,70252.0,1e-06]
[1730421913554,0.98746847,70253.0,70241.0,0.21255491]
[1730421913555,0.270364,70242.0,70241.0,0.21255491]
[1730421913789,0.4956534,70242.0,70241.0,0.21255491]
[1730421914228,0.142385,70232.0,70231.0,0.21255491]
[1730421914446,0.25221915,70232.0,70231.0,0.21255491]
[1730421914915,0.023,70231.0,70224.0,0.0791]
[1730421915141,0.023,70225.0,70224.0,0.0791]
[1730421915587,0.04015629,70225.0,70224.0,0.0791]
[1730421916027,0.01715629,70225.0,70224.0,0.52445591]
[1730421916232,0.01715629,70225.0,70224.0,0.311901]
[1730421916451,0.023,70236.0,70228.0,0.142392]
[1730421916657,0.023,70236.0,70226.0,0.284794]
[1730421916658,0.21255491,70240.0,70233.0,0.142381]
[1730421916881,0.142369,70240.0,70234.0,0.0761]
[1730421917101,0.15952729,70239.0,70234.0,0.0761]
[1730421917317,0.01715629,70239.0,70234.0,0.0761]
[1730421917755,0.023,70239.0,70234.0,0.0761]
[1730421917975,0.023,70237.0,70234.0,0.0761]
[1730421918392,0.165371,70239.0,70234.0,0.0761]
[1730421918592,0.023,70235.0,70234.0,0.0761]
[1730421919045,0.04015629,70235.0,70234.0,0.0761]
[1730421919482,0.01715629,70235.0,70234.0,0.45123625]
[1730421919904,0.35490391,70250.0,70239.0,0.284738]
[1730421919905,0.142349,70250.0,70239.0,0.284738]
[1730421920167,0.21255491,70250.0,70241.0,0.377833]
[1730421920401,0.01715629,70249.0,70243.0,0.142361]
[1730421920624,0.01715629,70249.0,70241.0,0.0931]
[1730421920830,0.023,70249.0,70241.0,0.0931]
[1730421921030,0.023,70247.0,70242.0,0.142364]
[1730421921236,0.023,70247.0,70242.0,0.284729]
[1730421921451,0.023,70247.0,70243.0,0.142362]
[1730421921883,0.023,70247.0,70241.0,0.235465]
[1730421922095,0.023,70245.0,70241.0,0.235465]
[1730421922510,0.023,70247.0,70241.0,0.235465]
[1730421922641,0.023,70243.0,70241.0,0.235465]
[1730421922859,0.023,70247.0,70241.0,0.235465]
[1730421923061,0.023,70245.0,70241.0,0.235465]
[1730421923276,0.023,70247.0,70241.0,0.235465]
[1730421923654,0.023,70243.0,70241.0,0.0931]
[1730421924099,0.01715629,70242.0,70241.0,0.0931]
[1730421925135,0.01715629,70242.0,70240.0,0.0755]
[1730421926390,0.01715629,70242.0,70241.0,0.142366]
[1730421926568,0.142346,70251.0,70243.0,0.142361]
[1730421926834,0.023,70253.0,70244.0,0.379321]
[1730421927051,0.023,70249.0,70246.0,0.142355]
[1730421927475,0.023,70247.0,70244.0,0.52168]
[1730421927679,0.023,70247.0,70244.0,0.236959]
[1730421927897,0.023,70251.0,70244.0,0.236959]
[1730421928118,0.023,70251.0,70248.0,0.142352]
[1730421928323,0.023,70251.0,70247.0,0.08683415]
[1730421928324,0.01718172,70250.0,70247.0,0.142354]
[1730421928533,0.023,70249.0,70247.0,0.142354]
[1730421928759,0.023,70249.0,70248.0,0.142352]
[1730421929180,0.165339,70255.0,70246.0,0.284713]
[1730421929625,0.023,70253.0,70247.0,0.142354]
[1730421930055,0.165339,70255.0,70247.0,0.142354]
[1730421930290,0.023,70251.0,70247.0,0.142354]
[1730421930538,0.023,70253.0,70247.0,0.142354]
[1730421930978,0.142328,70261.0,70254.0,0.0974]
[1730421931187,0.14233,70259.0,70254.0,0.0974]
[1730421931837,0.284655,70261.0,70254.0,0.0974]
[1730421932040,0.14233,70260.0,70254.0,0.0974]
[1730421932254,0.023,70258.0,70254.0,0.0974]
[1730421932855,0.307666,70258.0,70254.0,0.0974]
[1730421933133,0.142338,70255.0,70253.0,0.0832]
[1730421933349,0.142337,70256.0,70253.0,0.0832]
[1730421933576,0.284673,70256.0,70253.0,0.0832]
[1730421933806,0.19967655,70322.0,70243.0,0.29455491]
[1730421933807,0.284693,70252.0,70243.0,0.29455491]
[1730421934087,0.14236,70244.0,70243.0,0.21255491]
[1730421934294,0.16536,70244.0,70243.0,0.21255491]
[1730421934523,0.284736,70241.0,70238.0,0.082]
[1730421934751,0.284709,70247.0,70232.0,0.35493791]
[1730421934752,0.12986304,70242.0,70233.0,0.082]
[1730421934994,0.023,70241.0,70233.0,0.082]
[1730421935224,0.28477,70232.0,70224.0,0.083646]
[1730421935432,0.28477,70232.0,70231.0,0.21255491]
[1730421935433,0.023,70232.0,70231.0,0.21255491]
[1730421935650,0.711935,70231.0,70224.0,0.001646]
[1730421935902,0.15286304,70232.0,70224.0,0.001646]
[1730421935903,0.023,70230.0,70224.0,0.001646]
[1730421936137,0.12986304,70232.0,70224.0,0.001646]
[1730421936138,0.023,70228.0,70224.0,0.001646]